bitfinex/quotes_BTCUSD_20230403
["timestamp","ask_amount","ask_price","bid_price","bid_amount"]
[1680561834669,0.39851824,27865.0,27864.0,0.02069699]
[1680561835324,1.39042863,27865.0,27864.0,0.02069699]
[1680561835546,0.359231,27865.0,27864.0,0.02069699]
[1680561835779,0.332411,27865.0,27864.0,0.02069699]
[1680561836004,0.359411,27865.0,27864.0,0.02069699]
[1680561836216,0.332231,27865.0,27864.0,0.02069699]
[1680561836439,0.359231,27865.0,27864.0,0.02069699]
[1680561836738,0.4111337,27865.0,27864.0,0.02069699]
[1680561836945,0.0841337,27865.0,27864.0,0.02069699]
[1680561837180,0.1111337,27865.0,27864.0,0.02069699]
[1680561837610,0.4111337,27865.0,27864.0,0.02069699]
[1680561837829,1.70301184,27865.0,27864.0,0.02069699]
[1680561838296,1.74952369,27865.0,27864.0,0.02069699]
[1680561838514,1.72252369,27865.0,27864.0,0.02069699]
[1680561838732,1.74952369,27865.0,27864.0,0.02069699]
[1680561838961,1.72252369,27865.0,27864.0,0.02069699]
[1680561839193,1.74952369,27865.0,27864.0,0.02069699]
[1680561839416,1.72252369,27865.0,27864.0,0.02069699]
[1680561839640,1.74952369,27865.0,27864.0,0.02069699]
[1680561839856,1.72252369,27865.0,27864.0,0.02069699]
[1680561840067,1.84952369,27865.0,27864.0,0.02069699]
[1680561840512,1.82270369,27865.0,27864.0,0.02069699]
[1680561841861,2.02196369,27865.0,27864.0,0.02069699]
[1680561842088,2.02178369,27865.0,27864.0,0.01181599]
[1680561842528,1.99478369,27865.0,27864.0,0.01181599]
[1680561842743,2.02178369,27865.0,27864.0,0.01181599]
[1680561842928,1.99478369,27865.0,27864.0,0.01181599]
[1680561843180,2.02178369,27865.0,27864.0,0.01181599]
[1680561843396,1.92178369,27865.0,27864.0,0.01181599]
[1680561843618,1.92196369,27865.0,27864.0,0.01181599]
[1680561844059,1.91328369,27865.0,27864.0,0.01181599]
[1680561844270,1.35122914,27865.0,27864.0,0.01181599]
[1680561844504,1.32428914,27865.0,27864.0,0.01181599]
[1680561844723,1.35128914,27865.0,27864.0,0.01181599]
[1680561845158,1.35110914,27865.0,27864.0,0.01181599]
[1680561845375,1.55988565,27865.0,27864.0,0.01181599]
[1680561845595,1.32246614,27865.0,27864.0,0.46403928]
[1680561846098,1.32246614,27865.0,27864.0,0.4396128]
[1680561846099,1.32774322,27865.0,27864.0,0.4396128]
[1680561846328,0.00018,27867.0,27864.0,0.8468158]
[1680561846549,0.003587,27872.0,27870.0,0.19982]
[1680561846778,0.003587,27872.0,27871.0,0.14189681]
[1680561846997,0.003587,27872.0,27871.0,0.50106321]
[1680561847217,1.29515129,27872.0,27871.0,0.3591664]
[1680561847442,1.29515129,27872.0,27871.0,0.3593464]
[1680561847881,1.30708522,27872.0,27871.0,0.3593464]
[1680561848121,1.29508522,27872.0,27871.0,0.3593464]
[1680561848399,1.30356429,27872.0,27871.0,0.3593464]
[1680561848837,1.30715129,27872.0,27871.0,0.3593464]
[1680561849757,1.30733129,27872.0,27871.0,0.3593464]
[1680561849968,1.30715129,27872.0,27871.0,0.3593464]
[1680561850183,1.29515129,27872.0,27871.0,0.3593464]
[1680561850394,1.30715129,27872.0,27871.0,0.3593464]
[1680561852179,1.33514629,27872.0,27871.0,0.3593464]
[1680561852417,1.46877092,27872.0,27871.0,0.3593464]
[1680561852638,1.44005492,27872.0,27871.0,0.3593464]
[1680561853067,1.46922492,27872.0,27871.0,0.00018]
[1680561853288,1.47772492,27872.0,27870.0,0.00018]
[1680561853478,1.47749328,27871.0,27869.0,0.00018]
[1680561853713,1.64573329,27870.0,27867.0,0.2]
[1680561853969,0.03843,27869.0,27868.0,0.41892062]
[1680561854209,1.3337315,27869.0,27868.0,0.00018]
[1680561854419,1.49929345,27869.0,27868.0,0.00018]
[1680561854895,1.4992915,27869.0,27867.0,0.2]
[1680561855140,0.028732,27868.0,27867.0,0.2]
[1680561855350,0.039496,27868.0,27867.0,0.2]
[1680561855576,0.010764,27868.0,27867.0,0.2]
[1680561855813,1.49645883,27868.0,27866.0,0.00018]
[1680561856084,1.35737122,27867.0,27864.0,0.01181599]
[1680561856304,1.48211122,27866.0,27864.0,0.01181599]
[1680561856543,1.81083727,27865.0,27864.0,0.01181599]
[1680561856772,1.82292527,27865.0,27864.0,0.01181599]
[1680561857702,1.84992527,27865.0,27864.0,0.01181599]
[1680561859928,1.88462527,27865.0,27864.0,0.01181599]
[1680561860801,1.85762527,27865.0,27864.0,0.01181599]
[1680561861037,1.88462527,27865.0,27864.0,0.01181599]
[1680561862148,1.85762527,27865.0,27864.0,0.01181599]
[1680561862370,1.88462527,27865.0,27864.0,0.01181599]
[1680561865168,2.06417527,27865.0,27864.0,0.01181599]
[1680561865378,2.06405527,27865.0,27864.0,0.01181599]
[1680561866424,2.03705527,27865.0,27864.0,0.01181599]
[1680561866636,2.06405527,27865.0,27864.0,0.01181599]
[1680561869079,2.14986088,27865.0,27864.0,0.01181599]
[1680561869494,2.06405527,27865.0,27864.0,0.01181599]
[1680561869708,2.06423527,27865.0,27864.0,0.01181599]
[1680561870362,2.06405527,27865.0,27864.0,0.01181599]
[1680561871006,2.06405527,27865.0,27864.0,0.01174596]
[1680561871194,1.88462527,27865.0,27864.0,0.01174596]
[1680561872601,1.66798122,27865.0,27864.0,0.01174596]
[1680561872811,1.69498122,27865.0,27864.0,0.01174596]
[1680561873026,1.69211836,27865.0,27864.0,0.01174596]
[1680561873906,1.66511836,27865.0,27864.0,0.01174596]
[1680561874130,2.13084015,27865.0,27864.0,0.01174596]
[1680561874361,3.14847319,27865.0,27864.0,0.00084433]
[1680561874577,3.56887319,27865.0,27864.0,0.00084433]
[1680561874808,3.6076285,27865.0,27864.0,0.00084433]
[1680561875071,3.60762949,27865.0,27864.0,0.00084433]
[1680561875279,3.58062949,27865.0,27864.0,0.00084433]
[1680561875468,3.60762949,27865.0,27864.0,0.00084433]
[1680561875715,3.56881764,27865.0,27864.0,0.00084433]
[1680561875931,3.59581764,27865.0,27864.0,0.00084433]
[1680561876148,3.69581764,27865.0,27864.0,0.00084433]
[1680561877228,3.56881764,27865.0,27864.0,0.00084433]
[1680561877470,3.76735934,27865.0,27864.0,0.00084433]
[1680561877685,3.65288293,27865.0,27864.0,0.00084433]
[1680561878372,3.70785626,27865.0,27864.0,0.00084433]
[1680561878607,3.49337985,27865.0,27864.0,0.00084433]
[1680561878897,0.00018,27856.0,27855.0,0.0208]
[1680561879110,0.07975068,27856.0,27855.0,0.0208]
[1680561879324,0.12770435,27856.0,27855.0,0.0208]
[1680561879547,0.12770435,27856.0,27855.0,0.02098]
[1680561879759,0.10786067,27856.0,27855.0,0.02098]
[1680561879989,0.10786067,27856.0,27855.0,0.0208]
[1680561880203,0.40786067,27856.0,27855.0,0.0208]
[1680561880439,0.40786067,27856.0,27855.0,0.02098]
[1680561880649,0.43486067,27856.0,27855.0,0.02098]
[1680561881727,0.43486067,27856.0,27855.0,0.0208]
[1680561881942,0.43486067,27856.0,27855.0,0.02098]
[1680561882673,0.13486067,27856.0,27855.0,0.02098]
[1680561882891,0.17662639,27856.0,27855.0,0.02098]
[1680561883157,0.030769,27856.0,27855.0,0.16287681]
[1680561883440,0.030769,27856.0,27855.0,0.39445892]
[1680561883979,0.015769,27856.0,27855.0,0.39445892]
[1680561884255,0.003769,27856.0,27855.0,0.39445892]
[1680561884495,0.008769,27856.0,27855.0,0.39445892]
[1680561884753,0.003769,27856.0,27855.0,0.39445892]
[1680561885012,0.015769,27856.0,27855.0,0.39445892]
[1680561885314,0.003769,27856.0,27855.0,0.39445892]
[1680561886379,0.008769,27856.0,27855.0,0.39445892]
[1680561886625,0.003769,27856.0,27855.0,0.39445892]
[1680561886856,0.015769,27856.0,27855.0,0.39445892]
[1680561887072,0.003769,27856.0,27855.0,0.39445892]
[1680561887309,0.008769,27856.0,27855.0,0.39445892]
[1680561887520,0.003769,27856.0,27855.0,0.39445892]
[1680561887734,0.015769,27856.0,27855.0,0.39445892]
[1680561887948,0.003769,27856.0,27855.0,0.39445892]
[1680561888210,0.008769,27856.0,27855.0,0.39445892]
[1680561889086,0.003769,27856.0,27855.0,0.39445892]
[1680561889348,0.015769,27856.0,27855.0,0.39445892]
[1680561889563,0.003769,27856.0,27855.0,0.39445892]
[1680561889800,0.008769,27856.0,27855.0,0.39445892]
[1680561890067,0.003769,27856.0,27855.0,0.39445892]
[1680561890334,0.015769,27856.0,27855.0,0.39445892]
[1680561890665,0.003769,27856.0,27855.0,0.39445892]
[1680561890895,0.008769,27856.0,27855.0,0.39445892]
[1680561891124,0.003769,27856.0,27855.0,0.39445892]
[1680561892102,0.015769,27856.0,27855.0,0.39445892]
[1680561892360,0.008769,27856.0,27855.0,0.39445892]
[1680561892617,0.008769,27856.0,27855.0,0.42527492]
[1680561892875,0.00518,27856.0,27855.0,0.42527492]
[1680561893160,0.00018,27856.0,27855.0,0.42527492]
[1680561893406,0.00518,27856.0,27855.0,0.42527492]
[1680561893668,0.00518,27856.0,27855.0,0.02098]
[1680561893948,0.005,27856.0,27855.0,0.820806]
[1680561894735,0.007297,27864.0,27858.0,0.19982]
[1680561894736,0.00895127,27866.0,27856.0,0.1]
[1680561894737,0.00018,27865.0,27861.0,0.19982]
[1680561894979,1.29192325,27865.0,27863.0,0.4633]
[1680561895243,0.00018,27865.0,27864.0,0.14189681]
[1680561895521,0.00018,27865.0,27863.0,0.4633]
[1680561895522,0.003768,27865.0,27863.0,0.4693]
[1680561895823,0.003768,27866.0,27864.0,0.031044]
[1680561896084,0.001,27865.0,27864.0,0.031044]
[1680561896376,0.003768,27866.0,27864.0,0.031044]
[1680561896663,0.001,27865.0,27863.0,0.4773]
[1680561896943,0.00018,27866.0,27864.0,0.43536892]
[1680561897444,0.003768,27866.0,27865.0,0.030897]
[1680561897707,0.00018,27866.0,27864.0,0.40679092]
[1680561897956,0.003768,27866.0,27864.0,0.40479092]
[1680561898230,0.003768,27866.0,27865.0,0.031896]
[1680561898579,0.00018,27866.0,27865.0,0.031896]
[1680561898807,0.00518,27866.0,27865.0,0.032896]
[1680561899105,0.00518,27866.0,27864.0,0.40679092]
[1680561899106,0.00018,27866.0,27864.0,0.40679092]
[1680561899404,0.003768,27866.0,27865.0,0.029785]
[1680561899756,0.008768,27866.0,27865.0,0.030785]
[1680561900005,0.008768,27866.0,27865.0,0.001]
[1680561900214,0.008768,27866.0,27865.0,0.45123933]
[1680561900437,0.003768,27866.0,27865.0,0.42139633]
[1680561900657,0.003588,27866.0,27865.0,0.42139633]
[1680561901124,0.005,27866.0,27865.0,0.53858533]
[1680561901576,0.008588,27866.0,27865.0,0.42239633]
[1680561902156,0.003948,27867.0,27865.0,0.42139633]
[1680561902188,0.003588,27866.0,27865.0,0.42139633]
[1680561902635,0.003588,27866.0,27865.0,0.45178633]
[1680561902643,0.003588,27866.0,27865.0,0.42139633]
[1680561902914,0.00036,27867.0,27865.0,0.42139633]
[1680561903195,0.00018,27867.0,27866.0,0.030308]
[1680561903741,0.00018,27867.0,27865.0,0.0061]
[1680561903940,0.001,27866.0,27865.0,0.0141]
[1680561904163,0.4195479,27868.0,27865.0,0.036893]
[1680561904394,0.001,27867.0,27866.0,0.037165]
[1680561904617,0.4195479,27868.0,27866.0,0.029165]
[1680561904842,0.001,27867.0,27866.0,0.4271791]
[1680561905137,0.00018,27867.0,27866.0,0.4271791]
[1680561905365,0.00118,27867.0,27866.0,0.4663141]
[1680561905593,0.00118,27867.0,27866.0,0.4351791]
[1680561905827,0.03196768,27867.0,27866.0,0.008]
[1680561906054,0.020624,27867.0,27866.0,0.008]
[1680561906278,0.048863,27867.0,27866.0,0.008]
[1680561906520,0.047863,27867.0,27862.0,0.34484335]
[1680561906749,0.09069357,27867.0,27864.0,0.3050649]
[1680561906991,0.028465,27866.0,27865.0,0.33683204]
[1680561907225,0.07102989,27867.0,27866.0,0.00082]
[1680561907226,0.020856,27867.0,27866.0,0.00082]
[1680561907455,0.003768,27867.0,27865.0,0.33683204]
[1680561907682,0.004768,27867.0,27865.0,0.33683204]
[1680561907910,0.003768,27867.0,27865.0,0.33683204]
[1680561908140,0.014768,27867.0,27866.0,0.001]
[1680561909129,0.003768,27867.0,27864.0,0.0859]
[1680561909365,0.008768,27867.0,27865.0,0.001]
[1680561909594,0.01644783,27867.0,27864.0,0.0855]
[1680561909808,0.01644783,27867.0,27866.0,0.001]
[1680561909809,0.014768,27867.0,27866.0,0.001]
[1680561910033,0.003768,27867.0,27865.0,0.40196274]
[1680561910253,0.004948,27867.0,27865.0,0.40996274]
[1680561910538,0.004948,27867.0,27863.0,0.00018]
[1680561910539,0.06162655,27867.0,27863.0,0.00018]
[1680561910755,0.07244655,27867.0,27866.0,0.001]
[1680561910980,0.07244655,27867.0,27863.0,0.46084591]
[1680561910981,0.06162655,27867.0,27863.0,0.46084591]
[1680561911191,0.01143288,27866.0,27863.0,0.46084591]
[1680561911395,0.003588,27865.0,27863.0,0.46084591]
[1680561912451,0.003588,27865.0,27863.0,0.46884591]
[1680561912452,0.004588,27865.0,27863.0,0.46884591]
[1680561912899,0.001,27865.0,27864.0,0.03186]
[1680561913754,0.00018,27867.0,27864.0,0.03186]
[1680561913970,0.4159599,27868.0,27865.0,0.378]
[1680561914225,0.4159599,27868.0,27866.0,0.031353]
[1680561914444,0.4159599,27868.0,27866.0,0.117253]
[1680561914660,0.4159599,27868.0,27867.0,0.028587]
[1680561915094,0.4159599,27868.0,27867.0,0.41370855]
[1680561915095,0.4169599,27868.0,27867.0,0.41370855]
[1680561915548,0.4159599,27868.0,27867.0,0.41370855]
[1680561915767,0.4169599,27868.0,27867.0,0.42770855]
[1680561915988,0.4169599,27868.0,27867.0,1.00552855]
[1680561916205,0.4169599,27868.0,27867.0,0.626607]
[1680561916414,0.4169599,27868.0,27867.0,1.05988372]
[1680561916902,0.4168399,27868.0,27867.0,0.626727]
[1680561917124,0.4167799,27868.0,27867.0,0.626787]
[1680561917335,0.4167799,27868.0,27867.0,0.97993389]
[1680561917557,0.4167799,27868.0,27867.0,0.97876891]
[1680561917767,0.4167799,27868.0,27867.0,1.02982413]
[1680561918920,0.4167799,27868.0,27867.0,1.11572413]
[1680561919135,0.4167799,27868.0,27867.0,1.17623467]
[1680561919780,0.4167799,27868.0,27867.0,0.712687]
[1680561920203,0.4157799,27868.0,27867.0,0.698687]
[1680561920407,0.4167799,27868.0,27867.0,0.712687]
[1680561920878,0.4167799,27868.0,27867.0,0.730629]
[1680561921099,0.41549729,27868.0,27867.0,0.712687]
[1680561921314,0.41549729,27868.0,27867.0,1.09300163]
[1680561921531,0.41549729,27868.0,27867.0,1.06162547]
[1680561921744,0.41549729,27868.0,27867.0,0.712687]
[1680561922435,0.41555729,27868.0,27867.0,0.712687]
[1680561922646,0.41549729,27868.0,27867.0,0.712687]
[1680561923067,0.41549729,27868.0,27867.0,0.730629]
[1680561923522,0.41549729,27868.0,27867.0,0.830629]
[1680561923744,0.41549729,27868.0,27867.0,0.952409]
[1680561924197,0.41449729,27868.0,27867.0,0.938409]
[1680561924419,0.41549729,27868.0,27867.0,0.957409]
[1680561924699,0.41449729,27868.0,27867.0,0.938409]
[1680561924933,0.00902501,27880.0,27876.0,0.378]
[1680561925185,1.29131113,27879.0,27878.0,0.378]
[1680561925410,1.29149113,27879.0,27878.0,0.60579681]
[1680561925634,1.29149113,27879.0,27878.0,1.03631774]
[1680561925875,0.00018,27879.0,27878.0,1.03631774]
[1680561926107,0.00018,27879.0,27878.0,1.09424093]
[1680561926334,1.29149113,27879.0,27878.0,1.10004093]
[1680561926557,0.00018,27879.0,27878.0,1.12504093]
[1680561926785,0.00018,27879.0,27878.0,1.10004093]
[1680561927017,0.00018,27879.0,27878.0,1.12804093]
[1680561927236,0.00018,27879.0,27878.0,1.10004093]
[1680561927488,0.00018,27879.0,27878.0,1.12504093]
[1680561927703,0.00018,27879.0,27878.0,0.260136]
[1680561927704,0.0134202,27879.0,27878.0,0.260136]
[1680561927928,0.0134202,27879.0,27878.0,0.0308]
[1680561927929,1.30473133,27879.0,27878.0,0.0308]
[1680561928387,1.29149113,27879.0,27878.0,0.43535132]
[1680561928627,1.29149113,27879.0,27878.0,0.38042232]
[1680561928837,1.29149113,27879.0,27878.0,0.43264832]
[1680561929051,1.29149113,27879.0,27878.0,0.40464832]
[1680561929264,0.00018,27879.0,27878.0,0.42964832]
[1680561929488,0.00018,27879.0,27878.0,0.80764832]
[1680561932869,0.00018,27879.0,27878.0,0.90764832]
[1680561933980,0.00018,27879.0,27878.0,0.91404832]
[1680561936887,0.003766,27879.0,27878.0,0.539426]
[1680561937107,1.30184281,27879.0,27878.0,0.539426]
[1680561937332,1.30184281,27879.0,27878.0,0.5094]
[1680561937556,1.30184281,27879.0,27878.0,0.439639]
[1680561938002,1.29149113,27879.0,27878.0,0.403]
[1680561939495,1.29149113,27879.0,27878.0,0.433592]
[1680561939710,1.29149113,27879.0,27878.0,0.025]
[1680561941547,1.29149113,27879.0,27878.0,0.055822]
[1680561942766,1.29149113,27879.0,27878.0,0.025]
[1680561944045,1.29149113,27879.0,27878.0,0.055591]
[1680561944277,1.29149113,27879.0,27878.0,0.025]
[1680561946614,1.29149113,27879.0,27878.0,0.05574]
[1680561947530,1.29149113,27879.0,27878.0,0.05565311]
[1680561948203,1.29149113,27879.0,27878.0,0.02491311]
[1680561949532,1.31510081,27879.0,27878.0,0.02491311]
[1680561949754,1.39465213,27879.0,27878.0,0.02491311]
[1680561950855,1.40721464,27879.0,27878.0,0.02491311]
[1680561951098,1.39483213,27879.0,27878.0,0.02491311]
[1680561951302,1.39483213,27879.0,27872.0,0.762275]
[1680561951561,0.0618,27876.0,27872.0,0.762275]
[1680561951798,1.29489813,27875.0,27873.0,0.35053223]
[1680561952020,1.29489813,27875.0,27874.0,0.378]
[1680561952021,0.00018,27875.0,27874.0,0.378]
[1680561952237,1.29129323,27875.0,27874.0,0.72984752]
[1680561952469,1.29147323,27875.0,27874.0,0.76219052]
[1680561952692,0.00018,27875.0,27874.0,0.76219052]
[1680561952915,1.29147323,27877.0,27874.0,0.76719052]
[1680561953170,1.29129323,27876.0,27875.0,0.030998]
[1680561953390,1.29147323,27876.0,27875.0,0.030998]
[1680561953626,1.29129323,27876.0,27875.0,0.030998]
[1680561954053,0.00018,27877.0,27875.0,0.030998]
[1680561954274,1.29147323,27878.0,27875.0,0.030998]
[1680561954736,1.30327582,27878.0,27876.0,0.378]
[1680561954980,1.29129323,27877.0,27876.0,0.37818]
[1680561955237,1.29147323,27877.0,27876.0,0.37818]
[1680561955531,1.29147323,27877.0,27876.0,0.409424]
[1680561955782,0.00018,27877.0,27876.0,0.40318]
[1680561956006,1.29147323,27878.0,27877.0,0.73018723]
[1680561956452,1.29147323,27878.0,27877.0,0.76206223]
[1680561956710,1.29147323,27878.0,27877.0,0.86499723]
[1680561956947,0.00018,27878.0,27877.0,0.494875]
[1680561957168,1.29147323,27880.0,27877.0,0.914896]
[1680561957393,1.29147323,27880.0,27878.0,0.031944]
[1680561957838,1.29147323,27880.0,27879.0,0.74842374]
[1680561958076,1.29147323,27880.0,27879.0,0.627197]
[1680561958562,1.29147323,27880.0,27879.0,0.663077]
[1680561958799,1.29129323,27880.0,27879.0,1.13288636]
[1680561959026,1.29129323,27880.0,27879.0,0.663257]
[1680561959247,1.29129323,27880.0,27879.0,1.06979059]
[1680561959704,1.29129323,27880.0,27879.0,1.15569059]
[1680561961293,1.29129323,27880.0,27879.0,1.18369059]
[1680561961509,1.29129323,27880.0,27879.0,1.09779059]
[1680561961775,1.29129323,27880.0,27879.0,1.06979059]
[1680561962000,1.29129323,27880.0,27879.0,1.09779059]
[1680561962443,1.29129323,27880.0,27879.0,1.09889059]
[1680561962661,0.02288,27881.0,27879.0,1.09889059]
[1680561962880,0.02288,27881.0,27880.0,0.029508]
[1680561963137,1.31395356,27881.0,27880.0,0.407508]
[1680561963369,1.31395356,27881.0,27880.0,0.407688]
[1680561963812,1.31395356,27881.0,27880.0,0.90201256]
[1680561964031,1.31395356,27881.0,27880.0,0.91327856]
[1680561964262,1.31395356,27881.0,27880.0,0.558568]
[1680561964934,1.31413356,27881.0,27880.0,0.558568]
[1680561965373,1.31395356,27881.0,27880.0,0.91412604]
[1680561967390,1.31395356,27881.0,27880.0,0.88461804]
[1680561967624,1.31395356,27881.0,27880.0,0.44326]
[1680561967909,1.5053335,27881.0,27880.0,0.08248196]
[1680561968135,1.80810755,27881.0,27880.0,0.08128196]
[1680561968354,1.63158337,27881.0,27880.0,0.028]
[1680561968574,1.5455152,27881.0,27880.0,0.028]
[1680561968802,1.41064873,27881.0,27880.0,0.028]
[1680561969036,1.41082873,27881.0,27880.0,0.028]
[1680561969267,1.41082873,27881.0,27878.0,0.70954232]
[1680561969518,1.29107356,27880.0,27878.0,0.70954232]
[1680561969742,1.29125356,27880.0,27878.0,0.70954232]
[1680561969961,1.29125356,27880.0,27879.0,0.378]
[1680561970177,1.29125356,27880.0,27879.0,0.76784088]
[1680561971057,1.29125356,27880.0,27879.0,0.77384088]
[1680561971275,1.29125356,27880.0,27879.0,0.76784088]
[1680561972369,1.29125356,27880.0,27879.0,0.77384088]
[1680561972844,0.00012,27880.0,27879.0,0.668341]
[1680561973070,0.02288,27881.0,27879.0,0.632412]
[1680561973289,0.02288,27881.0,27880.0,0.83070267]
[1680561973510,0.02288,27881.0,27880.0,0.84863667]
[1680561973952,0.0227691,27881.0,27880.0,0.85015667]
[1680561974174,0.0227691,27881.0,27880.0,0.427556]
[1680561974394,0.0227691,27881.0,27880.0,0.78226656]
[1680561975707,0.0227691,27881.0,27880.0,0.92904656]
[1680561976141,0.0227691,27881.0,27880.0,0.90404656]
[1680561976355,0.0227691,27881.0,27880.0,0.93204656]
[1680561976573,0.0227691,27881.0,27880.0,0.90404656]
[1680561976794,0.0227691,27881.0,27880.0,1.03204656]
[1680561977005,0.0227691,27881.0,27880.0,1.00404656]
[1680561978140,0.0227691,27881.0,27880.0,1.03204656]
[1680561978362,0.0227691,27881.0,27880.0,1.00404656]
[1680561978577,0.0227691,27881.0,27880.0,1.03204656]
[1680561979918,0.0227691,27881.0,27880.0,1.00404656]
[1680561980574,0.0227691,27881.0,27880.0,1.03204656]
[1680561980788,0.04261278,27881.0,27880.0,0.437622]
[1680561981035,0.05729201,27881.0,27880.0,0.406]
[1680561981244,0.03386233,27881.0,27880.0,0.40618]
[1680561981459,0.03744833,27881.0,27880.0,0.406]
[1680561981683,0.09924833,27881.0,27879.0,0.00018]
[1680561981901,0.09924833,27881.0,27880.0,0.406]
[1680561982116,1.37959164,27881.0,27880.0,0.028]
[1680561982362,1.42106876,27881.0,27880.0,0.028]
[1680561982583,1.42106876,27881.0,27875.0,0.45788128]
[1680561982802,0.06138,27878.0,27877.0,0.378]
[1680561983030,0.06138,27878.0,27877.0,0.75287745]
[1680561983031,0.00018,27878.0,27877.0,0.75287745]
[1680561983252,0.00018,27878.0,27877.0,0.78282845]
[1680561984135,0.00018,27878.0,27877.0,0.78275084]
[1680561984587,0.00118,27878.0,27877.0,0.78275084]
[1680561984800,0.00018,27878.0,27877.0,0.78275084]
[1680561985013,0.00018,27878.0,27877.0,0.80075084]
[1680561986338,0.00018,27878.0,27877.0,0.77079984]
[1680561986760,0.00018,27878.0,27877.0,0.80141084]
[1680561987227,0.00018,27878.0,27877.0,0.77079984]
[1680561987709,0.00018,27878.0,27877.0,0.80054984]
[1680561990750,0.00018,27878.0,27877.0,0.77079984]
[1680561991172,0.00018,27878.0,27877.0,0.80169284]
[1680561992782,0.00018,27880.0,27877.0,0.79946095]
[1680561993007,0.0227691,27881.0,27879.0,0.37792239]
[1680561993233,0.0227691,27881.0,27880.0,0.029261]
[1680561993713,0.03396896,27881.0,27880.0,0.029261]
[1680561993933,0.03396896,27881.0,27879.0,0.37792239]
[1680561993934,0.0881551,27881.0,27879.0,0.37792239]
[1680561994163,0.0237691,27881.0,27880.0,0.37792239]
[1680561994382,1.38675439,27881.0,27880.0,0.37792239]
[1680561994627,1.38693439,27881.0,27880.0,0.37792239]
[1680561995402,1.39052039,27881.0,27880.0,0.37792239]
[1680561995995,1.39052039,27881.0,27879.0,0.37792239]
[1680561996205,0.0618,27880.0,27879.0,0.37792239]
[1680561997065,0.0618,27880.0,27879.0,0.38292239]
[1680561997949,0.0618,27880.0,27879.0,0.37792239]
[1680561998178,0.0618,27880.0,27879.0,0.38292239]
[1680561998418,0.0618,27880.0,27879.0,0.37792239]
[1680561999316,0.0618,27880.0,27879.0,0.38292239]
[1680561999548,0.0618,27880.0,27879.0,0.37792239]
[1680562000335,0.0618,27880.0,27879.0,0.38292239]
[1680562001489,0.09846918,27881.0,27879.0,0.38292239]
[1680562001705,1.29107164,27880.0,27879.0,0.38292239]
[1680562001923,1.29125164,27880.0,27879.0,0.38292239]
[1680562003010,1.31927764,27880.0,27879.0,0.38292239]
[1680562003231,1.29125164,27880.0,27879.0,0.38292239]
[1680562003459,1.31942164,27880.0,27879.0,0.38292239]
[1680562004105,0.02835,27880.0,27879.0,0.38292239]
[1680562004322,0.09846918,27881.0,27879.0,0.38292239]
[1680562004546,1.31944023,27880.0,27879.0,0.38292239]
[1680562004774,1.31962023,27880.0,27879.0,0.38292239]
[1680562005219,1.31962023,27880.0,27879.0,0.37792239]
[1680562005442,1.31962023,27880.0,27879.0,0.38292239]
[1680562005658,1.31962023,27880.0,27879.0,0.37792239]
[1680562005873,1.31962023,27880.0,27879.0,0.38292239]
[1680562006092,1.31962023,27880.0,27879.0,0.37792239]
[1680562006307,1.31962023,27880.0,27879.0,0.38292239]
[1680562006557,1.31962023,27880.0,27879.0,0.37792239]
[1680562006777,1.31962023,27880.0,27879.0,0.38292239]
[1680562006997,1.31962023,27880.0,27879.0,0.37792239]
[1680562008161,1.31962023,27880.0,27879.0,0.38992239]
[1680562008394,1.31962023,27880.0,27879.0,0.37792239]
[1680562008614,1.31962023,27880.0,27879.0,0.38292239]
[1680562009097,1.31962023,27880.0,27879.0,0.37792239]
[1680562009323,1.31962023,27880.0,27879.0,0.38992239]
[1680562009552,1.29124323,27880.0,27879.0,0.37792239]
[1680562009810,1.35662923,27880.0,27879.0,0.005]
[1680562010084,1.35662923,27880.0,27878.0,0.37792239]
[1680562010085,1.36687527,27880.0,27878.0,0.00018]
[1680562010330,1.36687527,27880.0,27877.0,0.37818]
[1680562010331,0.090765,27879.0,27877.0,0.37818]
[1680562010586,0.065387,27878.0,27877.0,0.37818]
[1680562010837,0.065567,27878.0,27877.0,0.37818]
[1680562011093,0.065567,27878.0,27877.0,0.00018]
[1680562011364,0.00018,27875.0,27874.0,0.37818]
[1680562011581,0.00018,27875.0,27874.0,0.78388964]
[1680562011582,0.065567,27875.0,27874.0,0.78388964]
[1680562012315,0.08541068,27875.0,27874.0,0.40588964]
[1680562012544,0.065567,27875.0,27874.0,0.00518]
[1680562012775,0.065567,27875.0,27874.0,0.005]
[1680562013034,0.06198,27875.0,27874.0,0.00518]
[1680562013256,0.06198,27875.0,27874.0,0.38512829]
[1680562013736,0.06198,27875.0,27874.0,0.41703829]
[1680562014631,0.06198,27875.0,27874.0,0.79503829]
[1680562019130,0.00018,27875.0,27874.0,0.79503829]
[1680562023479,0.00018,27875.0,27874.0,0.533027]
[1680562024146,0.00018,27875.0,27874.0,0.546027]
[1680562025011,0.00018,27875.0,27874.0,0.42809]
[1680562025228,0.00018,27875.0,27874.0,0.41509]
[1680562025898,0.02002368,27875.0,27874.0,0.03709]
[1680562026122,0.07638145,27875.0,27874.0,0.00518]
[1680562026346,0.10119455,27875.0,27874.0,0.005]
[1680562026565,0.10534552,27875.0,27874.0,0.005]
[1680562027254,0.10534552,27875.0,27872.0,0.75525917]
[1680562027472,0.01827352,27875.0,27874.0,0.001]
[1680562027692,0.10649452,27875.0,27871.0,0.46751691]
[1680562027914,0.01827352,27875.0,27874.0,0.002]
[1680562028135,0.10871452,27875.0,27874.0,0.002]
[1680562028831,0.00018,27872.0,27871.0,0.89978549]
[1680562029049,0.00018,27872.0,27871.0,0.43226858]
[1680562029679,0.00018,27872.0,27871.0,0.53226858]
[1680562030311,0.00018,27872.0,27871.0,0.53726858]
[1680562030750,7.514e-05,27872.0,27871.0,0.53726858]
[1680562030997,7.514e-05,27872.0,27871.0,0.53708858]
[1680562031219,7.514e-05,27872.0,27871.0,0.89071623]
[1680562031441,7.514e-05,27872.0,27871.0,0.53708858]
[1680562031895,7.514e-05,27872.0,27871.0,0.514771]
[1680562032115,7.514e-05,27872.0,27871.0,0.92534609]
[1680562032597,7.514e-05,27872.0,27871.0,0.93364609]
[1680562033050,7.514e-05,27872.0,27871.0,0.92864609]
[1680562033270,7.514e-05,27872.0,27871.0,0.523071]
[1680562033490,7.514e-05,27872.0,27871.0,0.518071]
[1680562033712,7.514e-05,27872.0,27871.0,0.94670683]
[1680562034366,5.14e-06,27872.0,27871.0,0.54101]
[1680562034591,1.29120532,27878.0,27871.0,0.54101]
[1680562034818,1.29138532,27878.0,27873.0,0.378]